fUST/lending_fUST_20250806
["ID","MTS","AMOUNT","RATE_DAILY","PERIOD"]
[377635862,1754471439221,-500.0,0.00030161,120]
[377635863,1754471439231,-500.0,0.00030161,120]
[377635864,1754471439240,-500.0,0.00030161,120]
[377635865,1754471439249,-500.0,0.00030161,120]
[377635866,1754471439260,-500.0,0.00030161,120]
[377635867,1754471439270,-500.0,0.00030161,120]
[377635868,1754471439280,-500.0,0.00030161,120]
[377635869,1754471439289,-500.0,0.00030161,120]
[377635870,1754471439300,-4312.68850389,0.0003019,2]
[377635871,1754471439309,-500.0,0.00030224,7]
[377635872,1754471439319,-1200.0,0.0003033,7]
[377635873,1754471439330,-500.0,0.00030389,30]
[377635874,1754471439340,-1200.0,0.0003046,7]
[377635875,1754471439349,-4000.0,0.00030468,3]
[377635876,1754471439359,-900.0,0.00030541,7]
[377635877,1754471439368,-800.0,0.00030543,7]
[377635878,1754471439378,-201.149912,0.00030559,30]
[377635879,1754471439387,-500.0,0.00030664,7]
[377635880,1754471439397,-5000.0,0.00030796,3]
[377635881,1754471439406,-842.45170444,0.00030796,3]
[377635882,1754471439416,-3096.73819153,0.00030844,15]
[377635883,1754471439426,-1200.0,0.00030852,7]
[377635884,1754471439436,-151.0,0.00030869,7]
[377635885,1754471439446,-1002.08,0.000309,2]
[377635886,1754471439455,-800.0,0.00030914,7]
[377635887,1754471439465,-542.97728237,0.00030947,7]
[377635888,1754471439475,-500.0,0.00030948,30]
[377635889,1754471439485,-900.0,0.00030957,7]
[377635890,1754471439494,-16084.94246214,0.0003099,2]
[377635891,1754471439505,-500.0,0.00031,120]
[377635892,1754471439514,-151.01770853,0.00031,2]
[377635893,1754471439523,-200.0,0.00031,3]
[377635894,1754471439533,-151.0,0.00031,16]
[377635895,1754471439543,-312.16666667,0.00031,120]
[377635896,1754471439552,-626.14,0.00031011,3]
[377635897,1754471439561,-13505.8155032,0.00031011,2]
[377635898,1754471439571,-838.90281792,0.00031011,2]
[377635899,1754471439581,-6000.0,0.00031021,3]
[377635900,1754471439593,-462.47,0.00031029,3]
[377635901,1754471439603,-231.24,0.00031029,3]
[377635902,1754471439612,-693.73,0.00031029,3]
[377635903,1754471439621,-13505.8155032,0.00031037,2]
[377635904,1754471439631,-838.90281792,0.00031037,2]
[377635905,1754471439641,-19228.97878596,0.00031047,5]
[377635906,1754471439650,-161.52264247,0.00031047,2]
[377635907,1754471439660,-9998.17139172,0.00031047,2]
[377635908,1754471439670,-18960.16212006,0.00031047,2]
[377635909,1754471439680,-12133.87591925,0.00031047,2]
[377635910,1754471439689,-500.0,0.00031048,30]
[377635911,1754471439700,-500.0,0.00031048,30]
[377635912,1754471439709,-500.0,0.00031048,30]
[377635913,1754471439719,-500.0,0.00031073,5]
[377635914,1754471439728,-500.0,0.00031073,5]
[377635915,1754471439739,-200.0,0.000311,30]
[377635916,1754471439748,-151.0,0.000311,20]
[377635917,1754471439757,-151.0,0.000311,14]
[377635918,1754471439767,-151.0,0.000311,17]
[377635919,1754471439776,-151.0,0.000311,10]
[377635920,1754471439786,-151.0,0.000311,20]
[377635921,1754471439795,-151.0,0.000311,15]
[377635923,1754471439805,-151.0,0.000311,19]
[377635925,1754471439815,-184.0,0.00031117,120]
[377635927,1754471439825,-796.0,0.00031117,120]
[377635929,1754471439835,-184.0,0.00031117,120]
[377635931,1754471439844,-796.0,0.00031117,120]
[377635933,1754471439854,-150.5,0.00031117,120]
[377635935,1754471439863,-312.16666667,0.00031117,120]
[377635937,1754471439873,-500.0,0.00031119,2]
[377635939,1754471439882,-151.0,0.00031119,2]
[377635941,1754471439892,-151.0,0.00031119,2]
[377635943,1754471439901,-500.0,0.00031119,2]
[377635945,1754471439911,-151.0,0.0003112,10]
[377635947,1754471439920,-215.9402422,0.0003112,10]
[377635949,1754471439929,-184.0,0.00031127,120]
[377635951,1754471439938,-796.0,0.00031127,120]
[377635953,1754471439948,-184.0,0.00031127,120]
[377635955,1754471439958,-796.0,0.00031127,120]
[377635957,1754471439968,-150.5,0.00031127,120]
[377635959,1754471439978,-168.81,0.00031127,120]
[377635961,1754471439987,-184.0,0.00031137,120]
[377635963,1754471439997,-796.0,0.00031137,120]
[377635965,1754471440007,-184.0,0.00031137,120]
[377635967,1754471440016,-796.0,0.00031137,120]
[377635969,1754471440026,-150.5,0.00031137,120]
[377635971,1754471440035,-150.5,0.00031137,120]
[377635973,1754471440045,-500.0,0.00031137,30]
[377635975,1754471440054,-13505.8155032,0.00031139,2]
[377635977,1754471440064,-838.90281792,0.00031139,2]
[377635979,1754471440074,-500.0,0.00031146,30]
[377635981,1754471440083,-350.15648856,0.00031146,2]
[377635983,1754471440093,-209888.28487339,0.00031147,20]
[377635985,1754471440107,-266.9869136,0.00031147,20]
[377635986,1754471440118,-291.300155,0.00031147,20]
[377635987,1754471440456,-168.44,0.00028189,2]
[377635988,1754471440465,-3953.78936474,0.00031147,20]
[377635992,1754471443231,-11716.999997,0.00031147,20]
[377636010,1754471501768,550.0,0.000273,120]
[377636016,1754471747783,463.02255663,0.0003,120]
[377636017,1754471780726,169.748389,0.00028164,120]
[377636018,1754471792731,463.02255663,0.0003,120]
[377636019,1754471837749,308.68170442,0.0003,120]
[377636021,1754471842641,171.126398,0.00013699,2]
[377636023,1754471882838,693.86507171,0.0003,120]
[377636024,1754471911049,796.0,0.00030131,120]
[377636025,1754471920640,-500.0,0.00027515,30]
[377636026,1754471920667,-500.0,0.00027999,30]
[377636027,1754471920693,-169.748389,0.00028164,31]
[377636028,1754471920718,-169.748389,0.00028164,61]
[377636029,1754471920743,-169.748389,0.00028164,90]
[377636030,1754471920771,-500.0,0.00029734,30]
[377636031,1754471920798,-400.0,0.00030137,120]
[377636032,1754471920822,-500.0,0.00030137,15]
[377636033,1754471920847,-500.0,0.00030137,10]
[377636034,1754471920872,-500.0,0.00030137,15]
[377636035,1754471920897,-500.0,0.00030137,15]
[377636036,1754471920921,-796.0,0.00030141,120]
[377636037,1754471920946,-796.0,0.00030151,120]
[377636038,1754471920972,-500.0,0.00030161,120]
[377636039,1754471920998,-500.0,0.00030161,120]
[377636040,1754471921023,-500.0,0.00030161,120]
[377636041,1754471921047,-500.0,0.00030161,120]
[377636042,1754471921072,-500.0,0.00030161,120]
[377636043,1754471921097,-500.0,0.00030161,120]
[377636044,1754471921122,-500.0,0.00030161,120]
[377636045,1754471921147,-500.0,0.00030161,120]
[377636046,1754471921173,-500.0,0.00030161,120]
[377636047,1754471921197,-500.0,0.00030161,120]
[377636048,1754471921222,-500.0,0.00030161,120]
[377636049,1754471921247,-500.0,0.00030161,120]
[377636050,1754471921272,-500.0,0.00030161,120]
[377636051,1754471921454,-500.0,0.00030161,120]
[377636052,1754471921483,-500.0,0.00030161,120]
[377636053,1754471921511,-500.0,0.00030161,120]
[377636054,1754471921537,-500.0,0.00030161,120]
[377636055,1754471921564,-500.0,0.00030161,120]
[377636056,1754471921590,-500.0,0.00030161,120]
[377636057,1754471921617,-500.0,0.00030161,120]
[377636058,1754471921643,-500.0,0.00030161,120]
[377636059,1754471921669,-500.0,0.00030161,120]
[377636060,1754471921694,-500.0,0.00030161,120]
[377636061,1754471921720,-500.0,0.00030161,120]
[377636062,1754471921746,-500.0,0.00030161,120]
[377636063,1754471921772,-500.0,0.00030161,120]
[377636064,1754471921798,-500.0,0.00030161,120]
[377636065,1754471921825,-500.0,0.00030161,120]
[377636066,1754471921850,-500.0,0.00030161,120]
[377636067,1754471921876,-500.0,0.00030161,120]
[377636068,1754471921901,-500.0,0.00030161,120]
[377636069,1754471921929,-500.0,0.00030161,120]
[377636070,1754471921956,-500.0,0.00030161,120]
[377636071,1754471921983,-500.0,0.00030161,120]
[377636072,1754471922012,-500.0,0.00030161,120]
[377636073,1754471922038,-500.0,0.00030161,120]
[377636074,1754471922064,-500.0,0.00030161,120]
[377636075,1754471922091,-500.0,0.00030161,120]
[377636076,1754471922117,-500.0,0.00030161,120]
[377636077,1754471922145,-500.0,0.00030161,120]
[377636078,1754471922172,-500.0,0.00030161,120]
[377636079,1754471922200,-500.0,0.00030189,30]
[377636080,1754471922228,-151.0,0.000303,10]
[377636081,1754471922257,-151.0,0.000304,19]
[377636082,1754471922283,-151.0,0.000305,16]
[377636083,1754471922310,-151.0,0.000306,18]
[377636084,1754471922336,-151.0,0.000307,16]
[377636085,1754471922361,-151.0,0.000308,20]
[377636086,1754471922385,-151.0,0.000309,19]
[377636087,1754471922412,-151.0,0.00031,12]
[377636088,1754471922446,-527.46908335,0.00031,120]
[377636089,1754471922476,-500.0,0.0003102,30]
[377636090,1754471922504,-500.0,0.00031049,30]
[377636091,1754471922530,-796.0,0.00031115,120]
[377636092,1754471922557,-184.0,0.00031116,120]
[377636093,1754471922582,-184.0,0.00031116,120]
[377636094,1754471922607,-500.0,0.0003112,10]
[377636095,1754471922634,-151.0,0.0003112,10]
[377636096,1754471922659,-215.9402422,0.0003112,10]
[377636097,1754471922685,-796.0,0.00031125,120]
[377636098,1754471922710,-796.0,0.00031125,120]
[377636099,1754471922735,-184.0,0.00031126,120]
[377636100,1754471922760,-184.0,0.00031126,120]
[377636101,1754471922786,-796.0,0.00031135,120]
[377636102,1754471922810,-796.0,0.00031135,120]
[377636103,1754471922835,-184.0,0.00031136,120]
[377636104,1754471922859,-184.0,0.00031136,120]
[377636105,1754471922884,-500.0,0.00031139,30]
[377636106,1754471923233,-312.16666667,0.00031146,10]
[377636107,1754471923260,-312.16666667,0.00031146,30]
[377636108,1754471923285,-312.16666667,0.00031146,120]
[377636109,1754471923314,-1500.0,0.00031147,28]
[377636110,1754471923341,-1500.0,0.00031147,28]
[377636111,1754471923367,-1500.0,0.00031147,28]
[377636112,1754471923393,-1500.0,0.00031147,28]
[377636113,1754471923419,-1500.0,0.00031147,28]
[377636114,1754471923443,-1500.0,0.00031147,28]
[377636115,1754471923470,-1500.0,0.00031147,28]
[377636116,1754471923495,-1500.0,0.00031147,28]
[377636117,1754471923522,-1500.0,0.00031147,28]
[377636118,1754471923547,-1500.0,0.00031147,28]
[377636119,1754471923573,-1500.0,0.00031147,28]
[377636120,1754471923598,-1500.0,0.00031147,28]
[377636121,1754471923623,-1500.0,0.00031147,28]
[377636122,1754471923650,-1500.0,0.00031147,28]
[377636123,1754471923828,-1500.0,0.00031147,28]
[377636124,1754471923866,-1500.0,0.00031147,28]
[377636125,1754471923891,-1500.0,0.00031147,28]
[377636126,1754471923918,-1500.0,0.00031147,28]
[377636127,1754471923945,-1500.0,0.00031147,28]
[377636128,1754471923972,-212.684675,0.00031147,28]
[377636129,1754471924000,-500.0,0.00031147,20]
[377636130,1754471924028,-500.0,0.00031149,30]
[377636131,1754471924054,-500.0,0.00031149,30]
[377636132,1754471924080,-500.0,0.00031149,30]
[377636133,1754471924107,-500.0,0.00031149,30]
[377636134,1754471924134,-500.0,0.00031149,30]
[377636135,1754471924161,-500.0,0.00031149,30]
[377636136,1754471924188,-184.98,0.00031149,30]
[377636137,1754471924215,-151.0,0.00031149,30]
[377636138,1754471924240,-216.47163855,0.00031149,10]
[377636139,1754471924266,-216.47163855,0.00031149,30]
[377636140,1754471924292,-842.45170444,0.00031149,10]
[377636141,1754471924318,-842.45170444,0.00031149,30]
[377636142,1754471924343,-527.46908335,0.0003115,10]
[377636143,1754471924368,-527.46908335,0.0003115,30]
[377636144,1754471924397,-152.241848,0.00031161,20]
[377636145,1754471924426,-152.241848,0.00031161,20]
[377636146,1754471924452,-156.479824,0.00031161,20]
[377636147,1754471924485,-204.2,0.00031181,15]
[377636148,1754471924514,-200.0,0.00031184,120]
[377636149,1754471924541,-986.72,0.00031196,30]
[377636150,1754471924567,-471.0,0.000312,120]
[377636151,1754471924592,-4300.0,0.000312,30]
[377636152,1754471924617,-896.98,0.000312,30]
[377636153,1754471924645,-152.241848,0.00031205,30]
[377636154,1754471924671,-162.24347196,0.00031208,30]
[377636155,1754471924698,-152.241848,0.00031212,30]
[377636156,1754471924724,-156.479824,0.00031212,30]
[377636157,1754471924749,-162.24347197,0.00031249,30]
[377636158,1754471924773,-206.0,0.0003125,30]
[377636159,1754471924799,-206.0,0.0003125,30]
[377636160,1754471924825,-204.2,0.00031281,15]
[377636161,1754471924851,-206.0,0.000313,30]
[377636162,1754471924877,-212.0,0.000313,30]
[377636163,1754471924903,-206.0,0.000313,30]
[377636164,1754471924932,-206.0,0.000313,30]
[377636165,1754471924960,-152.0,0.00031342,15]
[377636166,1754471924989,-200.0,0.00031342,120]
[377636167,1754471925015,-203.49,0.00031351,15]
[377636168,1754471925044,-198.7,0.00031358,15]
[377636169,1754471925070,-152.26,0.00031358,15]
[377636170,1754471925099,-204.2,0.00031381,15]
[377636171,1754471925127,-500.0,0.00031394,10]
[377636172,1754471925157,-151.0,0.00031394,10]
[377636173,1754471925186,-181.79,0.00031403,15]
[377636174,1754471925213,-241.2,0.00031416,15]
[377636175,1754471925239,-500.0,0.00031421,20]
[377636176,1754471925266,-199.66,0.00031432,15]
[377636177,1754471925293,-228.47,0.00031439,15]
[377636178,1754471925320,-152.13,0.00031442,15]
[377636179,1754471925359,-200.0,0.00031448,15]
[377636180,1754471925397,-203.49,0.00031451,15]
[377636181,1754471925430,-198.7,0.00031458,15]
[377636182,1754471925467,-152.26,0.00031458,15]
[377636183,1754471925504,-204.2,0.00031481,15]
[377636184,1754471925540,-181.79,0.00031503,15]
[377636185,1754471925574,-199.66,0.00031532,15]
[377636186,1754471925608,-228.47,0.00031539,15]
[377636187,1754471925642,-203.49,0.00031551,15]
[377636188,1754471925673,-198.7,0.00031558,15]
[377636189,1754471925708,-152.26,0.00031558,15]
[377636190,1754471925743,-204.2,0.00031581,15]
[377636191,1754471925779,-181.79,0.00031603,15]
[377636192,1754471925814,-199.66,0.00031632,15]
[377636193,1754471925844,-228.47,0.00031639,15]
[377636194,1754471925879,-203.65,0.00031651,15]
[377636195,1754471925913,-198.7,0.00031658,15]
[377636196,1754471925951,-152.26,0.00031658,15]
[377636197,1754471925983,-500.0,0.00031668,10]
[377636198,1754471926015,-197.3268588,0.00031668,10]
[377636199,1754471926048,-204.46732452,0.00031681,15]
[377636200,1754471926077,-500.0,0.00031695,20]
[377636201,1754471926110,-182.09,0.00031703,15]
[377636202,1754471926144,-199.66,0.00031732,15]
[377636203,1754471926177,-228.62,0.00031739,15]
[377636204,1754471926209,-198.7,0.00031758,15]
[377636205,1754471926241,-152.26,0.00031758,15]
[377636206,1754471926271,-184.0,0.0003176,120]
[377636207,1754471926303,-184.0,0.0003177,120]
[377636208,1754471926334,-152.241848,0.00031818,15]
[377636209,1754471926365,-199.66,0.00031832,15]
[377636210,1754471926397,-198.7,0.00031858,15]
[377636211,1754471926430,-152.26,0.00031858,15]
[377636212,1754471926465,-199.66,0.00031932,15]
[377636213,1754471926496,-500.0,0.00031942,10]
[377636214,1754471926528,-198.7,0.00031958,15]
[377636215,1754471926562,-152.26,0.00031958,15]
[377636216,1754471926593,-848.697572,0.00031963,120]
[377636217,1754471926624,-500.0,0.00031969,20]
[377636218,1754471926659,-400.0,0.00032,120]
[377636219,1754471926690,-500.0,0.00032,120]
[377636220,1754471926721,-160.0,0.00032,10]
[377636221,1754471926754,-199.66,0.00032032,15]
[377636222,1754471926786,-198.7,0.00032058,15]
[377636223,1754471926819,-152.26,0.00032058,15]
[377636224,1754471926851,-203.0,0.0003206,31]
[377636225,1754471926882,-152.241848,0.0003209,15]
[377636226,1754471926911,-156.479824,0.0003209,15]
[377636227,1754471926947,-199.84,0.00032132,15]
[377636228,1754471926983,-200.0,0.00032141,120]
[377636229,1754471927016,-198.7,0.00032158,15]
[377636230,1754471927051,-152.26,0.00032158,15]
[377636231,1754471927083,-200.0,0.00032212,120]
[377636232,1754471927117,-500.0,0.00032216,10]
[377636233,1754471927356,-500.0,0.00032243,20]
[377636234,1754471927404,-198.7,0.00032258,15]
[377636235,1754471927432,-152.26,0.00032258,15]
[377636236,1754471927461,-842.45170444,0.000323,120]
[377636237,1754471927489,-198.7,0.00032358,15]
[377636238,1754471927517,-152.26,0.00032358,15]
[377636239,1754471927543,-200.0,0.00032378,120]
[377636240,1754471927572,-198.7,0.00032458,15]
[377636241,1754471927606,-152.26,0.00032458,15]
[377636242,1754471927633,-500.0,0.0003249,10]
[377636243,1754471927660,-198.7,0.00032558,15]
[377636244,1754471927688,-152.26,0.00032558,15]
[377636245,1754471927714,-200.0,0.00032613,120]
[377636246,1754471927742,-198.7,0.00032658,15]
[377636247,1754471927770,-152.26,0.00032658,15]
[377636248,1754471927795,-198.7,0.00032758,15]
[377636249,1754471927825,-152.26,0.00032758,15]
[377636250,1754471927848,-500.0,0.00032764,10]
[377636251,1754471927873,-198.7,0.00032858,15]
[377636252,1754471927898,-152.63933909,0.00032858,15]
[377636253,1754471927924,-500.0,0.00032876,120]
[377636254,1754471927950,-2157.05,0.00032876,120]
[377636255,1754471927977,-400.0,0.00032877,120]
[377636256,1754471928008,-200.0,0.0003288,120]
[377636257,1754471928035,-198.7,0.00032958,60]
[377636258,1754471928060,-202.67740798,0.00033,21]
[377636259,1754471928086,-1000.0,0.00033,120]
[377636260,1754471928121,-500.0,0.00033038,10]
[377636261,1754471928149,-198.7,0.00033058,60]
[377636262,1754471928177,-12500.0,0.00033077,10]
[377636263,1754471928205,-12500.0,0.00033086,10]
[377636264,1754471928234,-198.7,0.00033158,60]
[377636265,1754471928262,-200.0,0.00033227,120]
[377636266,1754471928291,-198.7,0.00033258,60]
[377636267,1754471928316,-381.91969756,0.00033312,10]
[377636268,1754471928343,-198.7,0.00033358,60]
[377636269,1754471928368,-19448.39,0.000334,14]
[377636270,1754471928398,-198.7,0.00033458,60]
[377636271,1754471928424,-430.7234783,0.00033549,30]
[377636272,1754471928452,-198.7,0.00033558,60]
[377636273,1754471928479,-198.7,0.00033658,60]
[377636274,1754471928508,-2157.05,0.00033698,120]
[377636275,1754471928535,-198.7,0.00033758,60]
[377636276,1754471928562,-198.7,0.00033858,60]
[377636277,1754471928588,-200.0,0.0003395,120]
[377636278,1754471928616,-198.7,0.00033958,60]
[377636279,1754471928644,-200.0,0.00033958,120]
[377636280,1754471928670,-300.0,0.00034,120]
[377636281,1754471928696,-41799.09,0.00034,14]
[377636282,1754471928723,-151.0,0.00034,14]
[377636283,1754471928750,-160.0,0.00034,120]
[377636284,1754471928777,-527.46908335,0.00034,10]
[377636285,1754471928804,-198.72777179,0.00034058,60]
[377636286,1754471928831,-160.3561046,0.00034097,30]
[377636287,1754471928858,-153.0,0.00034097,30]
[377636288,1754471928886,-591.4668424,0.00034097,30]
[377636289,1754471928915,-592.9279104,0.00034097,30]
[377636290,1754471928944,-153.0,0.00034097,30]
[377636291,1754471928971,-160.3561046,0.00034097,30]
[377636292,1754471928999,-579.0986033,0.00034097,30]
[377636293,1754471929027,-585.8311132,0.00034097,30]
[377636294,1754471929054,-160.3561046,0.00034097,30]
[377636295,1754471929080,-579.0986033,0.00034097,30]
[377636296,1754471929106,-153.0,0.00034097,30]
[377636297,1754471929135,-579.0986033,0.00034097,30]
[377636298,1754471929163,-163.7068662,0.00034097,30]
[377636299,1754471929188,-500.0,0.00034246,120]
[377636300,1754471929214,-200.0,0.00034315,120]
[377636301,1754471929241,-200.0,0.00034333,120]
[377636302,1754471929266,-200.0,0.00034333,120]
[377636303,1754471929293,-19448.39,0.000345,14]
[377636304,1754471929321,-2157.05,0.0003452,120]
[377636305,1754471929349,-517.0,0.00035,120]
[377636306,1754471929374,-160.0,0.00035,14]
[377636307,1754471929405,-500.0,0.00035,120]
[377636308,1754471929431,-1000.0,0.00035,15]
[377636309,1754471929458,-150.0,0.00035,69]
[377636310,1754471929486,-2157.05,0.00035342,120]
[377636311,1754471929514,-41799.09,0.000355,14]
[377636312,1754471929540,-200.0,0.000356,120]
[377636313,1754471929566,-245.04479,0.000356,120]
[377636314,1754471929592,-500.0,0.00035616,120]
[377636315,1754471929618,-400.0,0.00035616,120]
[377636316,1754471929647,-200.0,0.00035697,120]
[377636317,1754471929673,-19448.39,0.000357,14]
[377636318,1754471929700,-152.241848,0.0003586,60]
[377636319,1754471929727,-300.0,0.00036,120]
[377636320,1754471929753,-5100.11164019,0.00036,30]
[377636321,1754471929905,-2157.05,0.00036164,120]
[377636322,1754471929938,-448.14946761,0.000365,120]
[377636323,1754471929967,-848.697572,0.0003653,120]
[377636324,1754471929995,-200.0,0.00036552,120]
[377636325,1754471930022,-200.0,0.00036581,120]
[377636326,1754471930050,-200.0,0.00036824,120]
[377636327,1754471930080,-41799.09,0.000369,14]
[377636328,1754471930107,-500.0,0.00036986,120]
[377636329,1754471930135,-2157.05,0.00036986,120]
[377636330,1754471930160,-153.0,0.00037,120]
[377636331,1754471930187,-245.75911,0.000374,120]
[377636332,1754471930214,-200.0,0.000374,120]
[377636333,1754471930241,-156.6,0.000375,112]
[377636334,1754471930267,-200.0,0.000376,120]
[377636335,1754471930294,-2157.05,0.00037808,120]
[377636336,1754471930320,-400.0,0.00038,120]
[377636337,1754471930346,-400.0,0.00038,120]
[377636338,1754471930373,-542.68438712,0.00038,45]
[377636339,1754471930399,-1000.0,0.00038,120]
[377636340,1754471930425,-570.0,0.00038,15]
[377636341,1754471930451,-53143.8960801,0.00038,30]
[377636342,1754471930480,-527.46908335,0.00038,120]
[377636343,1754471930507,-153.0,0.000381,120]
[377636344,1754471930536,-200.0,0.00038213,120]
[377636345,1754471930564,-500.0,0.00038356,120]
[377636346,1754471930588,-431.16189056,0.00038356,120]
[377636347,1754471930613,-200.0,0.000385,120]
[377636348,1754471930643,-2157.05,0.0003863,120]
[377636349,1754471930669,-167.0,0.000388,120]
[377636350,1754471930695,-253223.05276474,0.00039,60]
[377636351,1754471930723,-4031.81772273,0.00039,120]
[377636352,1754471930751,-151.0,0.00039,14]
[377636353,1754471930777,-200.0,0.0003924,120]
[377636354,1754471930803,-245.75911,0.000393,120]
[377636355,1754471930829,-386.33977,0.000393,120]
[377636356,1754471930857,-153.0,0.000393,120]
[377636357,1754471930888,-2157.05,0.00039452,120]
[377636358,1754471930916,-200.0,0.000396,120]
[377636359,1754471930945,-500.0,0.00039726,120]
[377636360,1754471930973,-200.0,0.00039759,120]
[377636361,1754471931000,-1178.42610404,0.00039877,120]
[377636362,1754471931026,-1000.0,0.0003999,120]
[377636363,1754471931055,-400.0,0.0004,120]
[377636364,1754471931082,-200.0,0.0004,120]
[377636365,1754471931108,-100506.6522122,0.0004,30]
[377636366,1754471931135,-603.23931261,0.0004,30]
[377636367,1754471931162,-88545.11449749,0.0004,30]
[377636368,1754471931192,-6114.35140547,0.0004,30]
[377636369,1754471931218,-208842.55515496,0.0004,120]
[377636370,1754471931244,-31819.24217168,0.0004,120]
[377636371,1754471931273,-588344.95077839,0.0004,120]
[377636372,1754471931299,-212.71772597,0.0004,120]
[377636373,1754471931326,-257.06580154,0.0004,120]
[377636374,1754471931352,-1285.0,0.0004,120]
[377636375,1754471931377,-843.0,0.0004,120]
[377636376,1754471931403,-204.16929014,0.0004,120]
[377636377,1754471931428,-41799.09,0.0004,14]
[377636378,1754471931455,-151.0,0.0004,14]
[377636379,1754471931483,-151.0,0.0004,14]
[377636380,1754471931509,-160.0,0.0004,120]
[377636381,1754471931536,-312.16666667,0.0004,120]
[377636382,1754471931561,-527.46908335,0.0004,120]
[377636383,1754471931588,-1727.88192014,0.00040147,28]
[377636384,1754471931614,-2157.05,0.00040273,120]
[377636385,1754471931642,-153.0,0.000404,120]
[377636386,1754471931667,-200.0,0.00040416,120]
[377636387,1754471931694,-200.0,0.00040854,120]
[377636388,1754471931719,-300.0,0.00041,120]
[377636389,1754471931745,-19448.39,0.00041,14]
[377636390,1754471931771,-426.8,0.00041041,120]
[377636391,1754471931797,-500.0,0.00041095,120]
[377636392,1754471931823,-2157.05,0.00041095,120]
[377636393,1754471931849,-231.52,0.00041096,120]
[377636394,1754471931875,-848.697572,0.00041096,120]
[377636395,1754471931902,-154.39189703,0.000411,120]
[377636396,1754471931928,-154.39189703,0.000411,120]
[377636397,1754471931952,-154.39189703,0.000411,120]
[377636398,1754471931979,-154.39,0.000411,120]
[377636399,1754471932004,-160.11011544,0.000411,120]
[377636400,1754471932030,-160.11011544,0.000411,120]
[377636401,1754471932055,-160.11011544,0.000411,120]
[377636402,1754471932082,-160.11011544,0.000411,120]
[377636403,1754471932110,-160.11011544,0.000411,120]
[377636404,1754471932136,-160.11011544,0.000411,120]
[377636405,1754471932161,-160.11011544,0.000411,120]
[377636406,1754471932187,-160.11011544,0.000411,120]
[377636407,1754471932213,-160.11,0.000411,120]
[377636408,1754471932238,-170.66756545,0.000411,120]
[377636409,1754471932263,-170.66756545,0.000411,120]
[377636410,1754471932289,-170.66756545,0.000411,120]
[377636411,1754471932315,-170.66756545,0.000411,120]
[377636412,1754471932343,-170.66756545,0.000411,120]
[377636413,1754471932368,-170.66,0.000411,120]
[377636414,1754471932394,-159.28972776,0.000411,120]
[377636415,1754471932566,-159.28972776,0.000411,120]
[377636416,1754471932593,-159.28972776,0.000411,120]
[377636417,1754471932619,-159.28972776,0.000411,120]
[377636418,1754471932647,-159.28972776,0.000411,120]
[377636419,1754471932673,-159.28972776,0.000411,120]
[377636420,1754471932698,-159.28972776,0.000411,120]